bitfinex/quotes_ETHUSD_20250424
["timestamp","ask_amount","ask_price","bid_price","bid_amount"]
[1745501755716,6.25784232,1757.8,1757.6,5.306]
[1745501755922,11.37811929,1757.8,1757.6,5.306]
[1745501756120,5.68894756,1757.8,1757.6,5.306]
[1745501756316,5.689253,1757.7,1757.6,5.306]
[1745501758439,5.68912392,1757.8,1757.6,5.306]
[1745501758754,5.68876947,1757.9,1757.6,5.306]
[1745501758958,0.7915,1758.1,1757.3,5.356]
[1745501758959,5.689253,1757.7,1757.3,5.356]
[1745501759163,5.69022419,1757.4,1757.3,5.306]
[1745501759559,5.69004111,1757.5,1757.3,5.306]
[1745501760436,5.68975872,1757.6,1757.3,5.306]
[1745501760644,5.69022419,1757.4,1757.3,5.306]
[1745501760833,6.82825137,1757.4,1757.3,5.306]
[1745501761169,6.82825137,1757.4,1757.0,17.058]
[1745501761326,5.69119572,1757.1,1757.0,17.058]
[1745501761528,5.69101379,1757.2,1756.7,0.05]
[1745501761845,5.69199742,1756.9,1756.8,5.307]
[1745501762471,5.69107461,1757.2,1756.8,5.307]
[1745501762757,5.69142054,1757.1,1756.8,5.307]
[1745501762959,6.82849939,1757.4,1756.8,5.307]
[1745501763158,5.69047221,1757.4,1756.9,5.69174476]
[1745501763377,5.69047221,1757.4,1757.0,0.05]
[1745501763378,11.38094306,1757.4,1757.0,0.05]
[1745501763576,5.69047085,1757.4,1757.0,0.05]
[1745501763730,5.69084713,1757.3,1757.0,0.05]
[1745501763928,5.69080125,1757.3,1757.0,0.05]
[1745501764441,1.35437695,1757.9,1757.5,5.68976557]
[1745501764643,5.68895826,1757.8,1757.6,5.308]
[1745501764962,5.68871358,1757.9,1757.5,5.308]
[1745501765128,0.7855,1758.1,1757.7,5.68910714]
[1745501765323,5.68923155,1757.8,1757.5,5.308]
[1745501765879,5.68957669,1757.6,1757.5,5.308]
[1745501766087,6.25853436,1757.6,1757.5,5.308]
[1745501766539,5.68938186,1757.7,1757.5,5.308]
[1745501767275,5.68957669,1757.6,1757.5,5.308]
[1745501767569,5.68994919,1757.5,1757.2,5.308]
[1745501767743,0.7586,1757.9,1757.2,5.308]
[1745501767956,5.69054799,1757.3,1757.2,5.308]
[1745501768143,0.7735,1757.7,1757.2,5.308]
[1745501768343,5.69001123,1757.5,1757.2,5.308]
[1745501768896,5.68972986,1757.6,1757.2,10.99881727]
[1745501769049,5.69033265,1757.4,1757.2,5.308]
[1745501769376,5.68972764,1757.6,1757.2,5.308]
[1745501769783,6.51703798,1757.9,1757.3,5.74037702]
[1745501769986,5.68848334,1758.0,1757.5,0.55]
[1745501770185,5.68897804,1757.8,1757.6,5.308]
[1745501770483,5.68896253,1757.8,1757.6,5.308]
[1745501770683,5.68846146,1758.0,1757.6,5.308]
[1745501770898,11.37700431,1758.0,1757.7,0.05]
[1745501771043,5.68864673,1757.9,1757.7,0.05]
[1745501771353,1.22053043,1758.0,1757.7,5.73906578]
[1745501771549,11.37629059,1758.1,1757.7,0.05]
[1745501771747,5.68831464,1758.0,1757.7,0.05]
[1745501772184,5.6883375,1758.0,1757.7,0.05]
[1745501772348,6.8051278,1758.6,1757.7,0.05]
[1745501772549,5.68761517,1758.3,1757.8,5.68881988]
[1745501772797,5.68788583,1758.2,1757.7,6.27482631]
[1745501772966,11.37578293,1758.2,1757.7,6.27482631]
[1745501773165,11.37581528,1758.2,1757.7,6.27482631]
[1745501773391,5.68780795,1758.2,1757.7,6.27482631]
[1745501773699,5.6874894,1758.3,1757.8,6.86629748]
[1745501773905,0.68051278,1758.5,1757.8,1.17748263]
[1745501774053,5.686398,1758.6,1758.1,5.68773231]
[1745501774253,5.686398,1758.6,1758.2,5.308]
[1745501774485,5.68601808,1758.7,1758.3,0.05]
[1745501774782,0.8302,1758.8,1758.3,5.73724214]
[1745501774946,5.68555391,1758.9,1758.3,5.73705625]
[1745501775154,5.68569878,1758.8,1758.3,5.7372589]
[1745501775356,6.83235523,1758.9,1758.4,5.68685322]
[1745501775552,1.14680132,1758.9,1758.4,5.68680885]
[1745501775796,0.7547,1759.2,1758.7,0.05]
[1745501776098,5.68456803,1759.2,1758.8,5.308]
[1745501776491,5.68482787,1759.1,1758.8,5.308]
[1745501777086,5.68460272,1759.2,1758.8,5.308]
[1745501777296,5.68442315,1759.2,1758.8,5.308]
[1745501777498,5.68442315,1759.2,1758.8,10.99364835]
[1745501777659,5.68477577,1759.1,1758.8,5.308]
[1745501777859,5.68521323,1759.0,1758.8,5.308]
[1745501778106,5.68537153,1758.9,1758.7,0.05]
[1745501778303,5.68537153,1758.9,1758.7,5.321]
[1745501778463,5.68569479,1758.8,1758.7,5.321]
[1745501779194,5.68569479,1758.8,1758.5,5.321]
[1745501779195,5.68579682,1758.8,1758.5,5.321]
[1745501779402,5.68537153,1758.9,1758.5,5.321]
[1745501779584,5.68520546,1759.0,1758.5,12.11324105]
[1745501779817,5.68494716,1759.1,1758.6,5.68618041]
[1745501780194,6.47716623,1759.2,1758.5,12.11328517]
[1745501780195,0.7926,1759.2,1758.5,12.11328517]
[1745501780504,0.7926,1759.2,1758.5,6.42678405]
[1745501780505,5.68571546,1758.8,1758.5,6.42678405]
[1745501780864,5.6852338,1759.0,1758.5,12.11322143]
[1745501780865,5.68514821,1759.0,1758.5,12.11322143]
[1745501781409,0.7926,1759.2,1758.5,6.42678405]
[1745501781609,6.3963485,1759.8,1758.8,0.55]
[1745501781610,0.8204,1759.7,1758.8,0.55]
[1745501781773,0.29668564,1759.8,1759.2,0.55]
[1745501781967,0.29668564,1759.8,1759.3,5.32]
[1745501781968,5.68300137,1759.7,1759.3,5.32]
[1745501782167,0.8204,1759.9,1759.1,5.73457714]
[1745501782168,5.68331235,1759.6,1759.4,5.32]
[1745501782384,5.68337856,1759.6,1759.4,5.32]
[1745501782795,5.68230842,1759.9,1759.5,0.05]
[1745501782973,0.56823084,1759.9,1759.5,0.05]
[1745501783175,5.68332615,1759.6,1759.4,5.32]
[1745501783375,5.68261519,1759.8,1759.4,5.32]
[1745501783580,5.68181818,1760.0,1759.4,5.32]
[1745501783783,5.68279204,1759.7,1759.4,5.32]
[1745501784304,11.36589475,1759.7,1759.4,5.32]
[1745501784613,5.68296724,1759.7,1759.4,5.32]
[1745501784825,5.68315954,1759.6,1759.4,5.32]
[1745501785027,6.8195217,1759.7,1759.4,5.32]
[1745501785028,6.81951759,1759.7,1759.4,5.32]
[1745501785170,5.68296313,1759.7,1759.4,5.32]
[1745501785370,6.44834867,1759.8,1759.4,5.32]
[1745501785683,6.4484427,1759.8,1759.4,5.32]
[1745501785897,5.68291259,1759.7,1759.4,5.32]
[1745501786103,5.68322883,1759.6,1759.4,5.32]
[1745501786271,5.68290399,1759.7,1759.4,5.32]
[1745501786870,5.68343279,1759.5,1759.1,0.05]
[1745501787072,5.68395136,1759.4,1759.0,17.06]
[1745501787404,5.68425693,1759.3,1759.0,22.378]
[1745501787708,5.68375582,1759.4,1759.0,22.378]
[1745501788091,5.68458531,1759.2,1759.0,22.378]
[1745501788299,0.64495558,1759.4,1759.0,22.378]
[1745501788500,5.68455183,1759.2,1759.0,22.378]
[1745501788673,5.68422384,1759.3,1759.0,22.378]
[1745501789067,5.68426497,1759.3,1759.0,22.378]
[1745501789307,0.7658,1759.5,1759.0,22.378]
[1745501789517,5.68472514,1759.1,1759.0,22.378]
[1745501789697,5.68472514,1759.1,1759.0,17.06]
[1745501790007,5.68504832,1759.0,1758.9,5.318]
[1745501790596,5.68549706,1758.9,1758.8,5.318]
[1745501790796,1.94871706,1759.1,1758.8,5.318]
[1745501790975,5.68529747,1759.0,1758.8,5.318]
[1745501791403,5.68457051,1759.2,1758.8,5.318]
[1745501791639,11.36927053,1759.2,1758.8,5.318]
[1745501791803,6.49603463,1759.3,1758.8,12.10393427]
[1745501792002,5.68429787,1759.3,1758.8,12.1040075]
[1745501792543,5.68440204,1759.2,1758.8,12.1040075]
[1745501792718,5.68440204,1759.2,1758.8,6.41839894]
[1745501792921,5.68429032,1759.3,1758.8,12.10401228]
[1745501793144,5.68429032,1759.3,1758.8,12.10397283]
[1745501793307,5.68429032,1759.3,1759.0,0.05]
[1745501793647,5.68472514,1759.1,1759.0,0.05]
[1745501793950,5.68472514,1759.1,1758.6,5.318]
[1745501794130,5.68627613,1758.7,1758.6,5.318]
[1745501794449,5.68860572,1757.9,1757.8,5.318]
[1745501794612,5.6890849,1757.8,1757.6,0.05]
[1745501794808,5.689253,1757.7,1757.5,5.318]
[1745501795150,0.7945,1757.8,1757.4,17.054]
[1745501795459,5.68990042,1757.5,1757.4,17.054]
[1745501795824,5.68974235,1757.6,1757.4,17.054]
[1745501796159,5.68974235,1757.6,1757.3,5.318]
[1745501796160,5.69022419,1757.4,1757.3,5.318]
[1745501796454,5.68990042,1757.5,1757.3,5.318]
[1745501796455,5.6899304,1757.5,1757.3,5.318]
[1745501796763,5.68943129,1757.7,1757.3,5.318]
[1745501797057,5.68958589,1757.6,1757.3,5.318]
[1745501797209,5.68943129,1757.7,1757.3,5.318]
[1745501797508,6.48362285,1757.8,1757.3,6.41888635]
[1745501797714,5.6894162,1757.7,1757.3,6.41888635]
[1745501798261,5.68875579,1757.9,1757.4,5.69008534]
[1745501798426,0.29689755,1758.0,1757.5,5.73971869]
[1745501798633,0.29689755,1758.0,1757.5,6.31368341]
[1745501798831,0.29689755,1758.0,1757.5,0.62397187]
[1745501799032,5.68777197,1758.2,1757.7,5.68908318]
[1745501799264,5.98382747,1758.4,1757.9,5.68842223]
[1745501799559,5.6872419,1758.4,1758.0,0.05]
[1745501800364,11.37449013,1758.4,1758.0,0.05]
[1745501800539,5.6872419,1758.4,1758.0,0.05]
[1745501800860,5.68746504,1758.3,1758.0,0.05]
[1745501801065,5.68713127,1758.4,1758.0,0.05]
[1745501801559,5.68666477,1758.5,1758.0,0.05]
[1745501801743,5.68795859,1758.1,1757.8,5.32]
[1745501801943,5.68746949,1758.3,1757.8,5.32]
[1745501802160,0.8057,1758.8,1757.9,3.0]
[1745501802462,5.686474,1758.6,1758.0,5.73810507]
[1745501802629,5.68655493,1758.6,1758.1,5.68793159]
[1745501802961,5.68670565,1758.5,1758.2,5.32]
[1745501803161,5.68673746,1758.5,1758.2,5.32]
[1745501803365,6.25545833,1758.5,1758.3,5.32]
[1745501803537,5.68678458,1758.5,1758.3,5.32]
[1745501803739,5.68612949,1758.7,1758.3,11.00727263]
[1745501803945,5.68698817,1758.4,1758.3,5.32]
[1745501804160,5.68746957,1758.3,1758.0,0.05]
[1745501804331,5.68601808,1758.7,1758.1,5.32]
[1745501804530,5.68735654,1758.3,1758.1,5.32]
[1745501804836,5.68714584,1758.4,1758.1,5.32]
[1745501805348,5.68680758,1758.5,1758.1,5.32]
[1745501805670,5.68682893,1758.5,1758.1,5.32]
[1745501805849,5.68681608,1758.5,1758.1,5.32]
[1745501806271,0.56860181,1758.6,1758.1,5.32]
[1745501806434,5.68634654,1758.6,1758.1,11.00776507]
[1745501806639,11.37300747,1758.6,1758.1,11.00776507]
[1745501806851,5.68673468,1758.5,1758.1,5.32]
[1745501807048,5.68652459,1758.6,1758.1,5.32]
[1745501807272,5.68667086,1758.5,1758.1,5.32]
[1745501808674,5.68620012,1758.7,1758.1,5.32]
[1745501808876,5.68572183,1758.8,1758.3,0.05]
[1745501809073,3.7808,1759.0,1758.3,0.05]
[1745501809074,5.68624326,1758.7,1758.3,0.05]
[1745501809641,11.37253954,1758.7,1758.3,0.05]
[1745501809898,5.68624326,1758.7,1758.3,0.05]
[1745501810258,5.68588101,1758.8,1758.3,5.73721065]
[1745501810467,0.7808,1759.0,1758.5,5.68647612]
[1745501810786,5.68494757,1759.1,1758.6,10.9931886]
[1745501810945,5.68514896,1759.0,1758.6,5.307]
[1745501811141,5.82338528,1759.2,1758.6,5.307]
[1745501811374,5.68584617,1758.8,1758.6,5.307]
[1745501811877,5.68601808,1758.7,1758.3,0.05]
[1745501812078,5.68601808,1758.7,1758.5,5.307]
[1745501812756,6.82298134,1758.8,1758.5,5.307]
[1745501813160,11.37179979,1758.8,1758.5,5.307]
[1745501813345,5.68584702,1758.8,1758.5,5.307]
[1745501813549,11.37181658,1758.8,1758.5,5.307]
[1745501813753,5.68552037,1758.9,1758.5,5.307]
[1745501814357,11.371164,1758.9,1758.5,5.307]
[1745501814554,1.1371164,1758.9,1758.5,5.307]
[1745501814802,5.6863414,1758.6,1758.5,5.307]
[1745501815376,5.68692367,1758.5,1758.3,0.05]
[1745501815582,5.68616235,1758.7,1758.2,5.306]
[1745501815583,5.6873116,1758.3,1758.2,5.306]
[1745501815772,5.68712924,1758.4,1758.2,5.306]
[1745501816095,5.6873116,1758.3,1758.2,5.306]
[1745501816459,6.82451801,1758.4,1758.2,5.306]
[1745501816659,11.37440079,1758.4,1758.2,5.306]
[1745501816970,5.6873116,1758.3,1758.2,5.306]
[1745501818002,5.68628524,1758.7,1758.2,5.306]
[1745501818205,5.68718113,1758.4,1758.2,5.306]
[1745501818505,0.7727,1758.8,1758.2,5.306]
[1745501818710,5.68645788,1758.6,1758.2,10.99356817]
[1745501818911,5.68645788,1758.6,1758.2,5.306]
[1745501819209,11.37307076,1758.6,1758.2,5.306]
[1745501819703,5.68713093,1758.4,1758.2,5.306]
[1745501820205,5.68684287,1758.5,1758.2,5.306]
[1745501820409,5.68581582,1758.8,1758.4,5.68686853]
[1745501820619,5.68581582,1758.8,1758.3,5.73708997]
[1745501820774,5.68555062,1758.9,1758.4,5.68683879]
[1745501820975,5.68572067,1758.8,1758.4,5.68683879]
[1745501821226,5.68572067,1758.8,1758.3,5.73708175]
[1745501821503,5.68680886,1758.5,1758.3,0.05]
[1745501821709,0.8277,1758.8,1757.6,22.08793904]
[1745501821710,13.71495712,1758.7,1758.0,0.05]
[1745501821880,5.02893904,1758.2,1757.8,5.307]
[1745501822211,5.68929068,1757.7,1757.5,5.356]
[1745501822369,5.68911232,1757.8,1757.5,5.356]
[1745501822601,5.68842539,1758.0,1757.5,11.045606]
[1745501822809,5.68828306,1758.0,1757.5,5.356]
[1745501823011,5.68834124,1758.0,1757.6,0.5356]
[1745501823307,5.6881435,1758.1,1757.5,0.05]
[1745501823517,5.6881435,1758.1,1757.6,5.68957154]
[1745501823894,5.6873963,1758.3,1757.7,5.689253]
[1745501824235,6.4618232,1758.4,1757.9,0.05]
[1745501824406,5.68742971,1758.3,1757.9,0.05]
[1745501824738,5.68742971,1758.3,1757.9,1.15447456]
[1745501825649,5.6871232,1758.4,1757.9,6.84297479]
[1745501825811,5.68737242,1758.3,1757.9,1.15447456]
[1745501826005,5.03049052,1758.8,1758.0,0.55]
[1745501826236,6.46770765,1759.1,1758.4,0.05]
[1745501826448,6.3320003,1759.0,1758.5,5.307]
[1745501826749,6.3320003,1759.0,1758.5,10.99354777]
[1745501827049,6.3320003,1759.0,1758.5,10.99349786]
[1745501827050,5.68516944,1759.0,1758.5,10.99349786]
[1745501827348,5.68556864,1758.9,1758.5,10.99366319]
[1745501827531,5.68516944,1759.0,1758.5,10.99366319]
[1745501828047,5.68490205,1759.1,1758.6,6.21373824]
[1745501828224,5.68490205,1759.1,1758.6,7.93445846]
[1745501828420,5.68520648,1759.0,1758.6,2.24812016]
[1745501828732,5.68520648,1759.0,1758.7,0.52739994]
[1745501829231,5.68520648,1759.0,1758.8,0.52739994]
[1745501829923,5.68520648,1759.0,1758.6,5.306]
[1745501830110,5.68520648,1759.0,1758.6,6.40524575]
[1745501830609,5.68538872,1758.9,1758.7,0.52692815]
[1745501831029,5.68518777,1759.0,1758.6,5.306]
[1745501831349,0.761,1759.3,1758.6,5.306]
[1745501831556,5.68430478,1759.3,1758.8,5.6855771]
[1745501831851,5.6847496,1759.1,1758.8,0.62855771]
[1745501832018,5.6847496,1759.1,1758.7,0.05]
[1745501832214,5.68550926,1758.9,1758.7,0.05]
[1745501832414,5.68523836,1759.0,1758.8,0.52668379]
[1745501832970,11.37055762,1759.0,1758.8,0.52668379]
[1745501833271,5.68516311,1759.0,1758.6,5.306]
[1745501833454,5.68508283,1759.0,1758.6,12.09160064]
[1745501833631,5.68507389,1759.0,1758.7,0.52663831]
[1745501834231,8.82959052,1759.3,1758.6,5.306]
[1745501834433,5.68517442,1759.0,1758.6,5.306]
[1745501834737,5.68538626,1758.9,1758.6,5.306]
[1745501835290,5.68520836,1759.0,1758.6,5.306]
[1745501835578,5.68520616,1759.0,1758.6,5.306]
[1745501835880,5.68484252,1759.1,1758.6,10.99226148]
[1745501836185,5.6845625,1759.2,1758.6,10.99207953]
[1745501836484,0.7991,1759.3,1758.8,5.68557797]
[1745501836688,5.68429391,1759.3,1758.8,5.68557797]
[1745501836986,5.68441459,1759.2,1758.9,0.52648593]
[1745501837175,5.68477519,1759.1,1758.9,5.83248593]
[1745501837575,5.68504832,1759.0,1758.9,5.83248593]
[1745501837878,5.68543447,1758.9,1758.7,0.05]
[1745501838045,5.68543447,1758.9,1758.8,5.306]
[1745501838251,5.68504832,1759.0,1758.5,0.05]
[1745501838454,5.6866238,1758.6,1758.2,0.05]
[1745501838680,5.68668939,1758.5,1758.4,5.306]
[1745501838878,5.67910746,1758.5,1758.4,5.306]
[1745501839280,5.68648297,1758.6,1758.0,5.73811812]
[1745501839490,5.68671211,1758.5,1758.2,5.311]
[1745501839804,5.68586329,1758.8,1758.3,5.68709668]
[1745501840119,5.68586329,1758.8,1758.2,10.99840805]
[1745501840120,5.68620966,1758.7,1758.2,10.99840805]
[1745501840327,5.68607024,1758.7,1758.3,0.05]
[1745501840619,5.68607024,1758.7,1758.3,1.68153353]
[1745501841216,5.68609703,1758.7,1758.3,7.36867693]
[1745501841388,5.68609703,1758.7,1758.3,1.15484044]
[1745501841589,5.68521931,1759.0,1758.5,5.68654918]
[1745501841818,5.68434675,1759.3,1758.8,5.68559192]
[1745501841983,5.68442517,1759.2,1758.9,0.05]
[1745501843221,5.68487003,1759.1,1758.9,0.05]
[1745501843427,5.68421361,1759.3,1758.9,0.05]
[1745501843577,5.68454667,1759.2,1758.9,0.05]
[1745501844018,5.68476628,1759.1,1758.9,0.05]
[1745501844713,5.68462441,1759.2,1758.9,0.05]
[1745501844887,5.68462441,1759.2,1758.7,5.73584844]
[1745501845094,5.68486619,1759.1,1758.8,5.88358484]
[1745501845279,5.68462441,1759.2,1758.8,5.88358484]
[1745501845480,11.36931952,1759.2,1758.8,5.88358484]
[1745501845780,5.68462441,1759.2,1758.8,5.88358484]
[1745501846114,5.68534792,1759.0,1758.8,5.88358484]
[1745501846320,5.68537153,1758.9,1758.8,5.31]
[1745501846880,5.68451586,1759.2,1758.8,5.31]
[1745501847083,5.68451586,1759.2,1758.7,5.68583724]
[1745501847279,5.6842254,1759.3,1758.9,0.05]
[1745501847515,11.36859284,1759.3,1758.9,0.05]
[1745501847963,5.68440381,1759.2,1758.9,0.05]
[1745501849862,5.68494562,1759.1,1758.9,0.05]
[1745501850037,5.68504832,1759.0,1758.8,5.87858372]
[1745501850239,5.68601808,1758.7,1758.3,6.79192372]
[1745501850463,5.6858412,1758.8,1758.4,11.57332957]
[1745501851157,5.6858412,1758.8,1758.4,11.04697968]
[1745501851353,5.68555537,1758.9,1758.4,11.04697968]
[1745501851666,5.68573403,1758.8,1758.4,11.04697968]
[1745501851872,5.68573403,1758.8,1758.5,0.52649471]
[1745501852373,11.3711694,1758.9,1758.4,12.83066487]
[1745501855037,5.6873116,1758.3,1758.2,5.31]
[1745501855241,5.68720103,1758.4,1758.2,5.31]
[1745501855676,6.47750311,1758.6,1758.2,5.31]
[1745501855980,0.791,1758.6,1758.2,5.31]
[1745501856177,5.68696284,1758.5,1758.2,5.31]
[1745501856874,5.68712478,1758.4,1758.2,5.31]
[1745501857441,5.68696284,1758.5,1758.2,5.31]
[1745501857846,0.791,1758.6,1758.2,5.31]
[1745501858079,5.68676575,1758.5,1758.2,5.31]
[1745501858894,5.6873116,1758.3,1758.2,5.31]
[1745501859081,0.8313,1759.0,1758.3,0.05]
[1745501859285,5.68537957,1758.9,1758.5,5.68660818]
[1745501859455,5.68575896,1758.8,1758.6,5.311]
[1745501859791,11.37174814,1758.8,1758.6,5.311]
[1745501860087,5.68601808,1758.7,1758.6,5.311]
[1745501860294,5.68588027,1758.8,1758.6,5.311]
[1745501861259,5.68601808,1758.7,1758.6,5.311]
[1745501861459,5.68588027,1758.8,1758.6,5.311]
[1745501861847,5.68601808,1758.7,1758.6,5.311]
[1745501863079,5.68698817,1758.4,1758.3,5.311]
[1745501864798,5.68680964,1758.5,1758.3,5.311]
[1745501865110,5.68616266,1758.7,1758.3,5.311]
[1745501865477,0.7607,1759.0,1758.4,5.6868985]
[1745501865806,5.68548442,1758.9,1758.5,6.21439126]
[1745501866007,5.68548442,1758.9,1758.6,0.62143913]
[1745501866312,5.68246391,1759.8,1759.1,5.68458283]
[1745501866476,0.29665399,1759.2,1759.0,5.68486736]
[1745501866676,5.68353583,1759.5,1759.1,5.311]
[1745501866875,11.36728774,1759.5,1759.2,0.52773878]
[1745501867173,6.8202646,1759.5,1759.2,0.52773878]
[1745501867373,6.8202646,1759.5,1759.1,5.311]
[1745501867906,5.68378277,1759.4,1759.1,5.311]
[1745501868407,6.82033829,1759.5,1759.1,5.311]
[1745501868713,5.68360952,1759.5,1759.1,5.311]
[1745501869209,5.68377239,1759.4,1759.1,5.311]
[1745501870221,5.68343553,1759.5,1759.1,5.311]
[1745501870425,11.36713537,1759.5,1759.1,5.311]
[1745501870635,5.68343553,1759.5,1759.1,5.311]
[1745501871527,5.68422955,1759.3,1759.1,5.311]
[1745501871908,5.68391397,1759.4,1759.1,5.311]
[1745501872347,5.68324983,1759.6,1759.1,10.99570395]
[1745501872501,6.5042529,1759.7,1759.2,5.73418815]
[1745501872832,6.50428816,1759.7,1759.2,5.73422331]
[1745501873035,6.50428816,1759.7,1759.2,7.40720449]
[1745501873413,6.50428816,1759.7,1759.2,7.40719287]
[1745501873611,0.7959,1759.9,1759.2,1.72298118]
[1745501873811,0.7959,1760.1,1759.6,5.68290106]
[1745501874119,5.68192464,1760.0,1759.7,5.272]
[1745501874839,5.68214878,1759.9,1759.7,5.272]
[1745501875228,5.68192464,1760.0,1759.7,5.272]
[1745501875403,5.68229982,1759.9,1759.7,5.272]
[1745501875608,11.36469218,1759.9,1759.7,5.272]
[1745501875823,5.68229982,1759.9,1759.7,5.272]
[1745501876148,11.3640427,1760.0,1759.7,5.272]
[1745501876506,5.68223796,1759.9,1759.7,5.272]
[1745501878464,5.68301846,1759.7,1759.4,0.05]
[1745501878676,6.43356391,1759.8,1759.1,0.05]
[1745501878877,5.68486323,1759.1,1758.9,0.05]
[1745501879170,6.43487767,1759.4,1758.9,5.272]
[1745501879471,0.7511,1759.4,1758.9,5.272]
[1745501879674,5.68442071,1759.2,1758.9,5.7992]
[1745501880233,5.68418401,1759.3,1758.9,11.48457042]
[1745501880445,5.68444225,1759.2,1758.9,5.7992]
[1745501880644,5.68354544,1759.5,1759.0,5.73484452]
[1745501880970,5.68419063,1759.3,1759.0,0.05]
[1745501881140,5.68419063,1759.3,1759.0,0.63492]
[1745501882069,5.68387851,1759.4,1759.0,0.63492]
[1745501882780,5.68410106,1759.3,1759.0,0.63492]
[1745501883073,5.68396317,1759.4,1759.0,0.63492]
[1745501883232,5.68362989,1759.5,1759.0,0.63492]
[1745501883428,5.68435965,1759.3,1759.0,0.63492]
[1745501883661,5.68451143,1759.2,1759.0,0.05]
[1745501883827,5.68414886,1759.3,1759.0,0.05]
[1745501884023,0.7985,1759.6,1759.0,0.05]
[1745501884261,6.11104943,1760.0,1759.2,5.6842918]
[1745501884262,5.6829,1759.7,1759.2,5.6842918]
[1745501884470,5.68314242,1759.6,1759.3,5.271]
[1745501884966,5.6835297,1759.5,1759.3,5.271]
[1745501885166,5.68314242,1759.6,1759.3,5.271]
[1745501885407,5.68311039,1759.6,1759.3,5.7981]
[1745501885603,6.50458972,1759.8,1759.3,5.7981]
[1745501885767,5.68258972,1759.8,1759.4,5.7336866]
[1745501885968,5.68258972,1759.8,1759.4,0.05]
[1745501886172,5.68306093,1759.7,1759.4,0.05]
[1745501886462,5.68312701,1759.6,1759.4,0.05]
[1745501887199,5.68370806,1759.5,1759.4,5.271]
[1745501887906,5.684402,1759.2,1758.9,0.05]
[1745501888207,1.21962621,1759.5,1758.9,5.321]
[1745501888375,6.90307204,1759.5,1758.9,5.321]
[1745501888577,5.6843568,1759.3,1758.9,11.0062218]
[1745501888784,5.68449497,1759.2,1758.9,6.9901728]
[1745501889280,5.68449497,1759.2,1758.9,5.321]
[1745501889478,11.36915834,1759.2,1758.9,5.321]
[1745501889703,5.68477639,1759.1,1758.9,5.321]
[1745501890406,5.68504832,1759.0,1758.9,5.271]
[1745501891094,6.49985163,1759.2,1758.9,5.271]
[1745501891297,5.68460977,1759.2,1758.9,5.7981]
[1745501891604,5.68504832,1759.0,1758.9,5.271]
[1745501892313,5.68551353,1758.9,1758.8,5.272]
[1745501892890,5.68551353,1758.9,1758.3,6.23717114]
[1745501892891,5.68677002,1758.5,1758.4,5.272]
[1745501893091,5.68742305,1758.3,1758.1,5.272]
[1745501893535,5.68745106,1758.3,1758.1,5.272]
[1745501893737,5.68763508,1758.2,1758.1,5.272]
[1745501894047,5.68795859,1758.1,1757.7,0.05]
[1745501894328,5.68860572,1757.9,1757.8,5.272]
[1745501895195,6.47310572,1757.9,1757.8,5.272]
[1745501896038,6.48635824,1758.1,1757.8,5.272]
[1745501896333,5.68852159,1758.0,1757.8,5.272]
[1745501897551,5.68809273,1758.1,1757.8,5.272]
[1745501897916,0.7577,1758.3,1757.8,5.272]
[1745501898116,5.68819906,1758.1,1757.8,5.8042]
[1745501898449,5.68840452,1758.0,1757.8,5.272]
[1745501898612,5.68804783,1758.1,1757.8,5.272]
[1745501898613,5.68817539,1758.1,1757.8,5.272]
[1745501898807,11.37642441,1758.1,1757.8,5.272]
[1745501899010,5.6885277,1758.0,1757.8,5.272]
[1745501900243,5.68845261,1758.0,1757.8,5.272]
[1745501900420,5.68860572,1757.9,1757.8,5.272]
[1745501900612,6.82631155,1757.9,1757.8,5.272]
[1745501901348,5.68845261,1758.0,1757.8,5.272]
[1745501902052,5.68799716,1758.1,1757.8,5.272]
[1745501902235,6.51656706,1758.3,1757.8,10.96064669]
[1745501902441,5.68707184,1758.4,1758.0,5.6882685]
[1745501902747,5.6861523,1758.7,1758.3,5.68719604]
[1745501902909,11.37181807,1758.8,1758.4,5.28]
[1745501903246,5.6858386,1758.8,1758.4,10.96698518]
[1745501903541,5.68540407,1758.9,1758.4,10.96684708]
[1745501903840,5.68553882,1758.9,1758.5,1.09668471]
[1745501904154,11.36995065,1759.1,1758.6,5.68618353]
[1745501904351,5.68515217,1759.0,1758.6,5.68618353]
[1745501904531,5.68490353,1759.1,1758.6,11.37231146]
[1745501904733,5.68490353,1759.1,1758.7,5.68596063]
[1745501904935,5.68490353,1759.1,1758.8,5.231]
[1745501905131,5.68537153,1758.9,1758.8,5.231]
[1745501905440,5.68572738,1758.8,1758.5,1.09668471]
[1745501905752,5.68666477,1758.5,1758.3,22.291]
[1745501905930,11.37313749,1758.6,1758.3,22.291]
[1745501906130,5.68682299,1758.5,1758.3,22.291]
[1745501906349,5.68698817,1758.4,1758.3,22.291]
[1745501906531,5.68698817,1758.4,1758.3,5.231]
[1745501907015,5.68683756,1758.5,1758.3,5.231]
[1745501908257,5.68698817,1758.4,1758.3,5.231]
[1745501908815,5.6864749,1758.6,1758.3,5.231]
[1745501909061,5.68676439,1758.5,1758.3,5.231]
[1745501909256,11.3737122,1758.5,1758.3,5.231]
[1745501909553,5.68676439,1758.5,1758.3,5.231]
[1745501909946,5.68595308,1758.8,1758.3,11.44628544]
[1745501910258,5.68620504,1758.7,1758.3,5.7591]
[1745501910758,11.37247541,1758.7,1758.3,5.7591]
[1745501911256,5.68601808,1758.7,1758.3,5.231]
[1745501911456,5.68795859,1758.1,1757.8,0.05]
[1745501911667,5.68794903,1758.2,1757.9,5.23]
[1745501911824,5.68789246,1758.2,1757.9,5.23]
[1745501912026,5.6876409,1758.2,1757.9,5.23]
[1745501912360,5.68797023,1758.1,1757.9,5.23]
[1745501912561,5.68828213,1758.0,1757.9,5.23]
[1745501913432,7.3948014,1758.0,1757.6,17.059]
[1745501913771,5.68947637,1757.7,1757.5,5.23]
[1745501913927,5.68957669,1757.6,1757.5,5.23]